[Event "44th Chess Olympiad Women 2022"]
[Site "Chennai"]
[Date "2022.08.01"]
[Round "4.11"]
[White "Yip, Carissa"]
[Black "Zhang, Jilin"]
[Result "1-0"]
[WhiteElo "2416"]
[BlackElo "2212"]
[Annotator "TA"]
[PlyCount "204"]
[EventDate "2022.??.??"]
[TimeControl "60"]

{[%evp 22,204,50,54,46,28,39,51,49,38,50,36,58,55,58,15,47,50,53,46,39,45,43,
11,21,11,24,0,24,28,39,15,25,16,23,31,39,7,28,13,16,7,18,0,0,0,0,0,0,0,30,0,38,
35,45,15,29,15,15,15,15,15,15,15,15,8,8,12,298,283,283,264,264,256,256,256,256,
256,256,222,191,8,8,8,8,8,8,8,8,8,8,8,8,8,8,8,8,8,8,8,8,8,8,0,29951,29952,
29951,29954,29954,29957,29957,29957,29958,29959,29962,29951,12181,5092,29973,
29970,29968,29971,29972,29973,29971,29968,29969,29971,29970,29973,29973,29972,
29973,29974,29978,29967,29967,29963,29962,29960,29962,29965,29976,29977,29976,
29978,29978,29979,29980,29981,29981,29982,29982,29983,29989,29990,29990,29975,
29980,29981,29985,29985,29985,29984,29990,29991,29993,29994,29994,29986,29986,
29987,29987,29988,29988,29989,29989,29984,29984,29986,29987,29985,29985,29985,
29985]} 1. e4 {[%emt 0:00:04]} c5 {[%emt 0:00:11]} 2. Nf3 {[%emt 0:00:06][%cal
Yg1f3,Yf3d4,Yd4f5]} d6 {[%emt 0:00:09]} 3. d4 {[%emt 0:00:06]} cxd4 {[%emt 0:
00:09]} 4. Nxd4 {[%emt 0:00:44]} Nf6 {[%emt 0:00:08]} 5. Nc3 {[%emt 0:00:00]}
e5 {[%emt 0:00:34]} 6. Bb5+ {[%emt 0:00:34]} Nbd7 {[%emt 0:00:27]} 7. Nf5 {
[%emt 0:00:22]} a6 {[%emt 0:00:25]} 8. Bxd7+ {[%emt 0:00:35]} Qxd7 {[%emt 0:00:
48]} 9. Bg5 {[%emt 0:00:32]} Nxe4 {[%emt 0:01:35]} 10. Nxg7+ {[%emt 0:00:26]}
Bxg7 {[%emt 0:00:08]} 11. Nxe4 {[%emt 0:00:04]} O-O {[%emt 0:00:00]} 12. Qxd6 {
[%emt 0:06:57]} f6 {[%emt 0:01:30] B56: Classical Sicilian: Unusual Lines.} 13.
Bd2 {[%emt 0:07:45]} f5 {[%emt 0:09:21]} 14. Qxd7 {[%emt 0:00:00]} Bxd7 {
[%emt 0:00:06] White is slightly better.} 15. Nc5 {[%emt 0:03:05][%csl Yb7,Yd7]
} Bc6 {[%emt 0:01:31] [#]} 16. Bc3 $146 {[%emt 0:00:07]} ({Predecessor:} 16.
Ne6 Rf7 17. O-O-O Bf6 18. f4 Re8 19. fxe5 Bxe5 20. Ng5 Rg7 21. Rhf1 f4 22. Nf3
{0-1 (52) Rodriguez Cespedes,A (2505)-Nijboer,F (2475) Amsterdam 1989}) 16...
Kf7 {[%emt 0:06:26] Prevents Ne6.} (16... Bxg2 17. Rg1 Bf3 18. Ne6 $16) 17.
O-O-O {[%emt 0:03:04][%cal Yc5b7]} Rad8 {[%emt 0:10:27]} (17... Bxg2 $2 18.
Rd7+ Ke8 19. Rg1 $18 (19. Rxg7 Bxh1 20. Ne6 Rf6 $16)) 18. f3 {[%emt 0:11:13]} (
18. Nd3 {looks sharper.} Bxg2 19. Rhg1 Be4 20. Bxe5 Bh6+ 21. Bf4) 18... Rxd1+ {
[%emt 0:06:15]} 19. Rxd1 {[%emt 0:00:07][%cal Yc5b7] aiming for Nxb7!} Re8 {
[%emt 0:00:14]} 20. Re1 {[%emt 0:05:49]} Bh6+ {[%emt 0:04:00]} 21. Bd2 {
[%emt 0:03:12]} Bf8 {[%emt 0:01:57]} 22. Nb3 {[%emt 0:00:12]} (22. Nd3 $5 {
[%cal Rd3e5]}) 22... Bd6 {[%emt 0:05:47]} 23. Be3 {[%emt 0:03:18]} Bc7 {
[%emt 0:10:24]} 24. c4 {[%emt 0:05:48]} Kf6 {[%emt 0:05:23]} 25. Bd2 {[%emt 0:
00:00]} Bb6 {[%emt 0:14:48]} 26. Ba5 {[%emt 0:04:02]} Bf2 {[%emt 0:00:25]} 27.
Rf1 {[%emt 0:03:48]} Be3+ {[%emt 0:00:52]} 28. Bd2 {[%emt 0:00:05]} Bb6 {
[%emt 0:01:06]} 29. Bc3 {[%emt 0:05:12]} f4 {[%emt 0:01:00]} 30. Re1 {[%emt 0:
00:00]} Kf5 {[%emt 0:01:05]} 31. c5 {[%emt 0:01:46]} Ba7 {[%emt 0:01:49]} 32.
Na5 {[%emt 0:07:36]} Bxc5 {[%emt 0:04:25]} 33. Nxc6 {[%emt 0:00:08]} bxc6 $11 {
[%emt 0:00:18] Endgame KRB-KRB} 34. Re4 {[%emt 0:00:08]} Be3+ {[%emt 0:04:40]}
35. Kc2 {[%emt 0:00:15]} c5 {[%emt 0:02:07]} 36. g3 {[%emt 0:00:00]} fxg3 {
[%emt 0:02:30]} 37. hxg3 {[%emt 0:04:59][%cal Yh2g3,Yg3g4]} Bd4 {[%emt 0:00:15]
} 38. g4+ {[%emt 0:01:09]} Kg5 $1 {[%emt 0:03:32]} 39. Bxd4 {[%emt 0:00:39]}
cxd4 {[%emt 0:00:04] KR-KR} 40. Kd3 {[%emt 0:00:05]} Kh4 {[%emt 0:02:21]} 41.
f4 {[%emt 0:32:45]} Kxg4 {[%emt 0:30:41]} 42. fxe5+ {[%emt 0:00:17]} Kf5 {
[%emt 0:00:24]} 43. Kxd4 {[%emt 0:00:33]} Rd8+ $1 {[%emt 0:00:53]} ({But not} 
43... Rb8 44. Re2 $16) 44. Ke3 {[%emt 0:00:04]} Re8 $2 {[%emt 0:00:12]} (44...
Rb8 $11 {and Black is okay.}) 45. Rf4+ $18 {[%emt 0:00:14]} Kg5 {[%emt 0:00:00]
} 46. Ke4 {[%emt 0:00:00]} h5 {[%emt 0:00:00]} 47. Rf1 {[%emt 0:00:00]} h4 {
[%emt 0:00:00]} 48. Rg1+ {[%emt 0:00:00]} Kh5 {[%emt 0:00:00]} 49. Kd5 {
[%emt 0:00:00] Black must now prevent e6.} Rd8+ {[%emt 0:00:00]} 50. Kc6 {
[%emt 0:00:00] White wants to mate with e6.} Rd2 {[%emt 0:00:00]} 51. e6 $2 {
[%emt 0:00:00]} ({Only move:} 51. Re1 $1 $18 {e6 would kill now.} Rc2+ 52. Kd7
Rd2+ 53. Kc8 Rc2+ 54. Kd8 Rd2+ 55. Kc8 Rc2+ 56. Kd7 Rd2+ 57. Kc7 Rc2+ 58. Kd6
Rd2+ 59. Kc5 Rc2+ 60. Kd6 (60. Kd4 Rd2+ 61. Kc5 Rc2+ 62. Kd6 Rd2+ 63. Kc5 $16)
60... Rd2+ 61. Kc5 Rc2+ 62. Kd4 Rd2+ 63. Kc4 (63. Kc3 Rd8 $16) 63... Rc2+ 64.
Kd4 Rd2+ 65. Kc5 (65. Kc3 Rd8 $16)) 51... Rc2+ {[%emt 0:00:00]} 52. Kd7 {
[%emt 0:00:00]} Rd2+ {[%emt 0:00:00]} 53. Kc7 {[%emt 0:00:00]} Rc2+ {[%emt 0:
00:00]} 54. Kd6 {[%emt 0:00:00] White threatens Rd1 and mate.} Rd2+ {[%emt 0:
00:00]} 55. Ke5 {[%emt 0:00:00]} Re2+ $1 {[%emt 0:00:00]} 56. Kf6 {[%emt 0:00:
00]} Rf2+ {[%emt 0:00:00]} 57. Kg7 {[%emt 0:00:00]} Re2 {[%emt 0:00:00]
Against Re1} 58. Kf7 {[%emt 0:00:00] Threatens to win with Rf1.} Rf2+ {[%emt 0:
00:00]} (58... h3 $2 59. e7 Rf2+ 60. Ke8 $18) 59. Ke8 {[%emt 0:00:00] Hoping
for Re1.} Rxb2 {[%emt 0:00:00]} (59... Re2 $2 60. e7 $18) 60. Ra1 {[%emt 0:00:
00] Strongly threatening e7.} h3 {[%emt 0:02:25][%cal Yh4h3,Yh3h2]} (60... Re2
$2 61. e7 $18) 61. e7 {[%emt 0:00:00] Re1 is the strong threat.} h2 $1 {
[%emt 0:03:18]} 62. Rf1 {[%emt 0:00:00] Intending Kf7 and mate.} Rxa2 $2 {
[%emt 0:01:49] White now steadily converts the win.} (62... Kg4 $11) 63. Kf7 {
[%emt 0:00:00]} Re2 {[%emt 0:00:21] [#]} 64. Rh1 $1 {[%emt 0:00:00]} Kg4 {
[%emt 0:02:24] [#]} 65. Rxh2 $3 {[%emt 0:00:00] Promotion} Rxh2 {[%emt 0:00:04]
} 66. e8=Q {[%emt 0:00:00] KQ-KR} Rf2+ {[%emt 0:00:33]} 67. Kg6 {[%emt 0:00:00]
} Rf4 {[%emt 0:00:12]} 68. Qc8+ {[%emt 0:00:00]} Kf3 {[%emt 0:00:20]} 69. Qxa6
{[%emt 0:00:02] Threatening mate with Qd3+.} Kg4 {[%emt 0:00:16]} 70. Qe6+ {
[%emt 0:00:30] White mates.} Kf3 {[%emt 0:00:10]} 71. Kg5 {[%emt 0:00:14]} Re4
{[%emt 0:00:13]} 72. Qh3+ {[%emt 0:00:19]} Ke2 {[%emt 0:00:16]} 73. Kf5 {
[%emt 0:00:07]} Re3 {[%emt 0:00:00]} 74. Qg2+ {[%emt 0:00:18]} Kd3 {[%emt 0:00:
08]} 75. Kf4 {[%emt 0:00:08]} Re2 {[%emt 0:00:37]} 76. Qd5+ {[%emt 0:01:37]}
Kc3 {[%emt 0:00:24]} 77. Kf3 {[%emt 0:00:09]} Rd2 {[%emt 0:00:24]} 78. Qe5+ {
[%emt 0:00:41]} Kc4 {[%emt 0:00:00]} 79. Ke3 {[%emt 0:00:15]} Rd5 {[%emt 0:00:
31]} 80. Qb2 {[%emt 0:00:08]} Kc5 {[%emt 0:00:17]} 81. Ke4 {[%emt 0:00:06]} Rd7
{[%emt 0:00:32]} 82. Qa3+ {[%emt 0:00:15]} Kc6 {[%emt 0:00:11]} 83. Ke5 {
[%emt 0:00:25]} Kb5 {[%emt 0:00:00]} 84. Qc3 {[%emt 0:00:30]} Kb6 {[%emt 0:00:
19]} 85. Qb4+ {[%emt 0:00:48]} Kc6 {[%emt 0:00:30]} 86. Ke6 {[%emt 0:00:06]}
Rc7 {[%emt 0:00:33]} 87. Qa4+ {[%emt 0:00:38]} Kc5 {[%emt 0:00:22]} 88. Qa5+ {
[%emt 0:00:15]} Kc6 {[%emt 0:00:00]} 89. Qd5+ {[%emt 0:00:17]} Kb6 {[%emt 0:00:
20]} 90. Kd6 {[%emt 0:00:05]} Rb7 {[%emt 0:00:28]} 91. Qc6+ {[%emt 0:02:33]}
Ka7 {[%emt 0:00:10]} 92. Kc5 {[%emt 0:00:17]} Rb8 {[%emt 0:00:47]} 93. Qc7+ {
[%emt 0:03:54]} Ka8 {[%emt 0:00:00]} 94. Qa5+ {[%emt 0:00:08]} Kb7 {[%emt 0:00:
25]} 95. Kd6 {[%emt 0:00:20]} Rc8 {[%emt 0:01:34]} 96. Kd7 {[%emt 0:00:16]} Rb8
{[%emt 0:00:18]} 97. Qe5 {[%emt 0:07:45]} Ka7 {[%emt 0:00:37]} 98. Kc7 {
[%emt 0:02:18][%cal Re5a1]} Rb7+ {[%emt 0:00:16]} 99. Kc6 {[%emt 0:00:03]} Rb6+
{[%emt 0:00:16] [#]} 100. Kc5 $1 {[%emt 0:00:08]} Rb7 {[%emt 0:00:37]} 101.
Qa1+ {[%emt 0:00:22]} Kb8 {[%emt 0:00:00]} 102. Qa5 {[%emt 0:00:04]} Rc7+ {
[%emt 0:01:52] Weighted Error Value: White=0.11 (very precise) /Black=0.14 
(very precise)} 1-0

[Event "44th Chess Olympiad Women 2022"]
[Site "Chennai"]
[Date "2022.08.01"]
[Round "4.12"]
[White "Mirza, Diana"]
[Black "Gaboyan, Susanna"]
[Result "0-1"]
[WhiteElo "1898"]
[BlackElo "2270"]
[Annotator "NA RC"]
[PlyCount "114"]
[EventDate "2022.??.??"]
[TimeControl "60"]

1. e4 {[%emt 0:00:03]} c5 {[%emt 0:00:06]} 2. Nf3 {[%emt 0:00:08]} Nc6 {
[%emt 0:00:06]} 3. d4 {[%emt 0:00:08]} cxd4 {[%emt 0:00:20]} 4. Nxd4 {[%emt 0:
00:00]} Nf6 {[%emt 0:00:05]} 5. Nc3 {[%emt 0:00:09]} e5 {[%emt 0:00:06]} 6.
Ndb5 {[%emt 0:00:10]} d6 {[%emt 0:00:07]} 7. Nd5 {[%emt 0:00:24]} Nxd5 {
[%emt 0:00:12]} 8. exd5 {[%emt 0:00:06]} Ne7 {[%emt 0:00:08]} 9. c4 {[%emt 0:
00:00]} Ng6 {[%emt 0:00:15]} 10. Qa4 {[%emt 0:01:26]} Bd7 {[%emt 0:00:48]} 11.
Qb4 {[%emt 0:00:29]} Qb8 {[%emt 0:00:47]} 12. h4 {[%emt 0:00:35]} h5 {[%emt 0:
00:00]} 13. Be2 {[%emt 0:06:09]} a6 {[%emt 0:03:46]} 14. Nc3 {[%emt 0:00:59]}
Be7 {[%emt 0:11:10]} 15. g3 {[%emt 0:00:09]} f5 {[%emt 0:00:20]} 16. Be3 {
[%emt 0:15:24]} e4 {[%emt 0:04:25]} 17. Bd4 {[%emt 0:03:46]} Kf7 {[%emt 0:00:
00]} 18. c5 {[%emt 0:16:39]} a5 {[%emt 0:10:01]} 19. Qa3 {[%emt 0:08:44]} dxc5
{[%emt 0:15:03]} 20. Bxc5 {[%emt 0:00:26]} b5 {[%emt 0:02:26]} 21. d6 {[%emt 0:
00:00]} Bf6 {[%emt 0:01:05]} 22. Qb3+ {[%emt 0:05:53]} Be6 {[%emt 0:01:51]} 23.
Qxb5 {[%emt 0:00:17]} Rc8 {[%emt 0:03:45]} 24. Na4 {[%emt 0:08:16]} Qxb5 {
[%emt 0:03:07]} 25. Bxb5 {[%emt 0:00:01]} Rab8 {[%emt 0:02:11]} 26. Be2 {
[%emt 0:03:36]} Rxb2 {[%emt 0:08:18]} 27. Nxb2 {[%emt 0:09:18]} Rxc5 {[%emt 0:
00:00]} 28. Rd1 {[%emt 0:01:48]} Nf8 {[%emt 0:02:01]} 29. Na4 {[%emt 0:00:27]}
Rc2 {[%emt 0:01:12]} 30. Nb6 {[%emt 0:01:29]} Rxa2 {[%emt 0:04:20]} 31. d7 {
[%emt 0:02:12]} Bd8 {[%emt 0:00:57]} 32. Nc4 {[%emt 0:04:01]} Rxe2+ {[%emt 0:
00:00]} 33. Kxe2 {[%emt 0:00:00]} Bxc4+ {[%emt 0:00:07]} 34. Kd2 {[%emt 0:00:
00]} Nxd7 {[%emt 0:01:00]} 35. Kc3 {[%emt 0:00:08]} Bd3 {[%emt 0:00:13]} 36.
Kb2 {[%emt 0:04:08]} Nb6 {[%emt 0:01:55]} 37. Rc1 {[%emt 0:00:34]} Bf6+ {
[%emt 0:00:52]} 38. Ka3 {[%emt 0:00:28]} Be7+ {[%emt 0:00:16]} 39. Kb2 {
[%emt 0:00:36]} a4 {[%emt 0:00:11]} 40. Rc7 {[%emt 0:00:18]} Nc4+ {[%emt 0:00:
00]} 41. Kc3 {[%emt 0:01:29]} Nd6 {[%emt 0:00:22]} 42. Kb2 {[%emt 0:01:10]} a3+
{[%emt 0:02:20]} 43. Kb3 {[%emt 0:00:30]} Nb5 {[%emt 0:00:10]} 44. Rb7 {
[%emt 0:01:38]} Nd4+ {[%emt 0:00:14]} 45. Kc3 {[%emt 0:00:52]} Nc6 {[%emt 0:00:
00]} 46. Ra1 {[%emt 0:01:08]} Ke6 {[%emt 0:02:23]} 47. Rxe7+ {[%emt 0:00:08]}
Nxe7 {[%emt 0:01:11]} 48. Rxa3 {[%emt 0:00:04]} f4 {[%emt 0:00:09]} 49. Ra5 {
[%emt 0:03:41]} fxg3 {[%emt 0:00:50]} 50. fxg3 {[%emt 0:00:21]} Nf5 {[%emt 0:
00:00]} 51. Kd2 {[%emt 0:03:13]} Kf6 {[%emt 0:04:44]} 52. Ke1 {[%emt 0:01:26]}
Nxg3 {[%emt 0:02:39]} 53. Rg5 {[%emt 0:00:06]} Nf5 {[%emt 0:00:11]} 54. Rxh5 {
[%emt 0:00:15]} e3 {[%emt 0:00:14]} 55. Rh8 {[%emt 0:00:33]} Nd4 {[%emt 0:00:
00]} 56. Re8 {[%emt 0:01:28]} Nf3+ {[%emt 0:00:17]} 57. Kd1 {[%emt 0:00:29]}
e2+ {[%emt 0:00:06]} 0-1

[Event "44th Chess Olympiad Women 2022"]
[Site "Chennai"]
[Date "2022.08.01"]
[Round "4.12"]
[White "Mkrtchian, Lilit"]
[Black "Kanyamarala, Trisha"]
[Result "1-0"]
[WhiteElo "2362"]
[BlackElo "2270"]
[Annotator "TA"]
[PlyCount "119"]
[EventDate "2022.??.??"]
[TimeControl "60"]

{[%evp 9,119,22,10,9,12,18,22,11,12,22,27,0,18,28,28,9,10,7,54,72,64,54,52,47,
60,55,45,53,53,43,74,65,133,141,132,132,130,139,127,131,133,140,178,173,175,
159,159,159,162,158,204,218,212,221,231,193,171,187,171,173,198,170,249,226,
222,191,411,245,245,170,170,172,243,243,243,243,227,205,172,172,172,108,109,
109,109,0,808,760,908,307,1416,1046,1407,1500,29971,29972,29977,29978,29978,
29979,29979,29980,29979,29979,29979,29980,29979,29978,29988,29989,29989,29990]
} 1. d4 {[%emt 0:00:15]} Nf6 {[%emt 0:00:13]} 2. Nf3 {[%emt 0:00:38]} d5 {
[%emt 0:00:23]} 3. g3 {[%emt 0:00:07]} c5 {[%emt 0:00:12]} 4. Bg2 {[%emt 0:00:
00]} cxd4 {[%emt 0:00:51]} 5. O-O {[%emt 0:00:12]} h6 {[%emt 0:00:16]} 6. b3 {
[%emt 0:00:10] D02:1 d4 d5 2 Nf3 sidelines, including 2...Nf6 3 g3 and 2...
Nf6 3 Bf4.} e6 {[%emt 0:00:51][%cal Ye7e6,Ye6e5,Ye5e4]} 7. Bb2 {[%emt 0:00:28]}
Bc5 {[%emt 0:00:21]} 8. Nxd4 {[%emt 0:00:40] The position is equal.} O-O {
[%emt 0:03:21]} 9. c4 {[%emt 0:00:44]} e5 {[%emt 0:01:06]} 10. Nf3 {[%emt 0:00:
55]} e4 {[%emt 0:00:43]} 11. Nd4 {[%emt 0:00:18]} Re8 {[%emt 0:00:00]} 12. cxd5
{[%emt 0:17:03]} Nxd5 {[%emt 0:01:26] [#]} 13. Nc3 $146 {[%emt 0:00:00]} ({
Predecessor:} 13. e3 Nd7 14. Nc3 Nxc3 15. Bxc3 Bf8 16. Nb5 Nc5 17. Qxd8 Rxd8
18. Bd4 Bd7 19. Nc3 {½-½ (40) Coleman,P (2610)-Mcdermott,F (2331) ICCF email
2021}) 13... Nf6 {[%emt 0:07:15]} (13... Nxc3 $1 $11 14. Bxc3 Bg4) 14. Na4 $14
{[%emt 0:01:56]} Be7 {[%emt 0:04:31]} 15. Rc1 {[%emt 0:06:37]} Bg4 {[%emt 0:10:
45]} 16. h3 $36 {[%emt 0:02:37] White has the initiative.} Bd7 {[%emt 0:00:59]}
17. Nc5 {[%emt 0:01:50]} Bxc5 {[%emt 0:02:46]} 18. Rxc5 {[%emt 0:04:55]} Na6 {
[%emt 0:07:16]} 19. Rc1 {[%emt 0:08:03]} Rc8 {[%emt 0:02:06]} 20. Nc2 {[%emt 0:
09:20]} Rc6 {[%emt 0:07:50]} (20... Bb5 $14) 21. Ne3 $16 {[%emt 0:02:37]} Rxc1
{[%emt 0:03:09]} 22. Qxc1 {[%emt 0:00:20] aiming for Rd1.} Qe7 {[%emt 0:03:21]}
23. Rd1 {[%emt 0:01:58] Black must now prevent Bxf6.} Be6 {[%emt 0:08:44]} 24.
Bxf6 {[%emt 0:22:57]} Qxf6 {[%emt 0:00:00]} 25. Bxe4 {[%emt 0:00:17]} Bxh3 {
[%emt 0:08:23]} 26. Bxb7 {[%emt 0:02:31] Hoping for Nd5.} Nb4 {[%emt 0:02:36]}
27. Qd2 {[%emt 0:04:35]} Qb6 {[%emt 0:00:00]} 28. Bf3 {[%emt 0:00:17]} Be6 {
[%emt 0:01:28]} 29. Nc4 {[%emt 0:04:33]} Qb8 {[%emt 0:03:08]} (29... Qc5 $16 {
is a better defense.} 30. a3 Na6) 30. a3 $18 {[%emt 0:04:13]} Na6 {[%emt 0:00:
56]} 31. Na5 {[%emt 0:00:19]} Nc5 {[%emt 0:00:00]} 32. b4 {[%emt 0:00:15]} Nb3
{[%emt 0:02:05] [#]} 33. Nxb3 {[%emt 0:00:31]} Bxb3 {[%emt 0:00:06]} 34. Rc1 {
[%emt 0:00:12]} Rd8 {[%emt 0:02:18]} 35. Qc3 {[%emt 0:00:23]} Rd1+ {[%emt 0:02:
15]} (35... Be6 {was called for.} 36. Qe3 a6) 36. Rxd1 {[%emt 0:00:48]} Bxd1 {
[%emt 0:00:06] Endgame KQB-KQB} 37. Qc6 {[%emt 0:02:20]} Qd8 $2 {[%emt 0:01:22]
} (37... Bb3 38. Be4 g6 39. Bxg6 fxg6) 38. Kf1 {[%emt 0:00:43]} (38. a4 $142)
38... Bb3 {[%emt 0:05:39]} 39. Qa8 {[%emt 0:00:14]} Qxa8 {[%emt 0:00:43]} 40.
Bxa8 {[%emt 0:00:04] KB-KB} Kf8 {[%emt 0:00:36]} (40... f6 $142 41. f4 g5) 41.
f4 {[%emt 0:12:46]} Ke7 {[%emt 0:00:00]} 42. Kf2 {[%emt 0:00:32]} Kd6 {[%emt 0:
00:41]} 43. Bf3 {[%emt 0:00:52]} g5 {[%emt 0:07:34]} 44. fxg5 {[%emt 0:11:17]}
hxg5 {[%emt 0:00:09]} 45. Ke3 {[%emt 0:00:12]} ({Better is} 45. e3 $18) 45...
Ke5 $16 {[%emt 0:00:44]} 46. Kd3 {[%emt 0:00:14] e3 is the strong threat.} f5 {
[%emt 0:01:08]} 47. Bg2 {[%emt 0:00:00]} (47. Bc6 $16) 47... Be6 $2 {[%emt 0:
02:58]} (47... f4 $11) 48. e3 $18 {[%emt 0:00:24]} Bf7 {[%emt 0:02:43]} 49. Kc3
$2 {[%emt 0:03:00]} (49. a4 Bb3 50. a5) 49... Be6 $2 {[%emt 0:01:04]} (49... f4
50. gxf4+ gxf4 51. exf4+ Kxf4) 50. a4 {[%emt 0:00:23][%cal Ya3a4,Ya4a5,Ya5b6]}
Bf7 {[%emt 0:00:57]} 51. b5 {[%emt 0:00:28] Threatens to win with a5.} Be6 {
[%emt 0:00:00]} 52. a5 {[%emt 0:00:48] White mates.} Bc8 {[%emt 0:02:32]} 53.
b6 {[%emt 0:00:15]} axb6 {[%emt 0:00:15]} 54. axb6 {[%emt 0:00:03]} f4 {
[%emt 0:00:00]} 55. exf4+ {[%emt 0:00:26]} gxf4 {[%emt 0:00:09]} 56. g4 {
[%emt 0:01:20][%cal Yg3g4,Yg4g5,Yg5g6]} f3 {[%emt 0:01:04]} 57. Bxf3 {[%emt 0:
00:04]} Kf4 {[%emt 0:00:11] [#]} 58. Kd4 $1 {[%emt 0:00:38]} Kxf3 {[%emt 0:00:
14]} (58... Ba6 59. Kc5) 59. g5 {[%emt 0:00:03]} Kf4 {[%emt 0:00:28]} 60. g6 {
[%emt 0:00:04] Weighted Error Value: White=0.20 (precise) /Black=0.31} 1-0

[Event "44th Chess Olympiad Women 2022"]
[Site "Chennai"]
[Date "2022.08.01"]
[Round "4.12"]
[White "Mkrtchyan, Mariam"]
[Black "Putar, Lara"]
[Result "1-0"]
[WhiteElo "2285"]
[BlackElo "1969"]
[Annotator "RC"]
[PlyCount "115"]
[EventDate "2022.??.??"]
[TimeControl "60"]

1. d4 {[%emt 0:00:04]} Nf6 {[%emt 0:00:05]} 2. c4 {[%emt 0:00:05]} g6 {[%emt 0:
00:00]} 3. g3 {[%emt 0:00:04]} c6 {[%emt 0:00:27]} 4. Bg2 {[%emt 0:00:07]} d5 {
[%emt 0:00:06]} 5. Nf3 {[%emt 0:00:04]} Bg7 {[%emt 0:00:12]} 6. cxd5 {[%emt 0:
00:00]} cxd5 {[%emt 0:00:05]} 7. Nc3 {[%emt 0:00:03]} O-O {[%emt 0:00:47]} 8.
Ne5 {[%emt 0:00:17]} Bf5 {[%emt 0:00:53]} 9. O-O {[%emt 0:10:52]} Ne4 {[%emt 0:
00:00]} 10. Qb3 {[%emt 0:04:21]} Nc6 {[%emt 0:03:17]} 11. Nxc6 {[%emt 0:18:23]}
bxc6 {[%emt 0:00:30]} 12. Be3 {[%emt 0:00:04]} Nd6 {[%emt 0:09:23]} 13. Na4 {
[%emt 0:02:10]} e5 {[%emt 0:04:40]} 14. dxe5 {[%emt 0:06:50]} Bxe5 {[%emt 0:00:
00]} 15. Qd1 {[%emt 0:00:22]} Nb5 {[%emt 0:12:05]} 16. Rc1 {[%emt 0:01:43]} Rc8
{[%emt 0:06:26]} 17. Qd2 {[%emt 0:02:08]} Qf6 {[%emt 0:10:10]} 18. Bg5 {
[%emt 0:04:22]} Qd6 {[%emt 0:01:18]} 19. Nc5 {[%emt 0:00:54]} Rfe8 {[%emt 0:00:
00]} 20. Rfe1 {[%emt 0:04:24]} f6 {[%emt 0:05:17]} 21. Be3 {[%emt 0:01:23]} g5
{[%emt 0:04:48]} 22. a4 {[%emt 0:04:38]} Nc7 {[%emt 0:03:31]} 23. Nb7 {[%emt 0:
00:00]} Qd7 {[%emt 0:00:53]} 24. Nc5 {[%emt 0:08:14]} Qe7 {[%emt 0:03:42]} 25.
b4 {[%emt 0:01:06]} Kg7 {[%emt 0:06:48]} 26. Bd4 {[%emt 0:00:28]} Bxd4 {
[%emt 0:05:00]} 27. Qxd4 {[%emt 0:00:05]} Qe5 {[%emt 0:00:59]} 28. Qd2 {
[%emt 0:00:50]} Ne6 {[%emt 0:02:03]} 29. Nb3 {[%emt 0:06:49]} Be4 {[%emt 0:00:
00]} 30. Bh3 {[%emt 0:02:21]} Bf5 {[%emt 0:00:41]} 31. Bf1 {[%emt 0:00:40]} h5
{[%emt 0:00:44]} 32. Na5 {[%emt 0:03:33]} Nd4 {[%emt 0:03:23]} 33. Rc3 {
[%emt 0:02:30]} Be4 {[%emt 0:03:00]} 34. Rd1 {[%emt 0:00:33]} c5 {[%emt 0:00:
00]} 35. Rxc5 {[%emt 0:03:37]} Rxc5 {[%emt 0:00:27]} 36. bxc5 {[%emt 0:00:02]}
Ne6 {[%emt 0:02:00]} 37. c6 {[%emt 0:01:22]} h4 {[%emt 0:01:39]} 38. f3 {
[%emt 0:03:13]} hxg3 {[%emt 0:01:29]} 39. fxe4 {[%emt 0:00:42]} gxh2+ {[%emt 0:
00:00]} 40. Kh1 {[%emt 0:00:05]} Qg3 {[%emt 0:00:51]} 41. Bg2 {[%emt 0:30:17]}
Nf4 {[%emt 0:06:02]} 42. e3 {[%emt 0:00:00]} Nh5 {[%emt 0:07:04]} 43. Qxd5 {
[%emt 0:00:00]} Rh8 {[%emt 0:01:03]} 44. Qd7+ {[%emt 0:00:00]} Kf8 {[%emt 0:00:
00]} 45. Qc8+ {[%emt 0:00:00]} Kg7 {[%emt 0:00:23]} 46. Qd7+ {[%emt 0:00:00]}
Kf8 {[%emt 0:00:11]} 47. Qh3 {[%emt 0:00:02]} g4 {[%emt 0:00:37]} 48. Qxh2 {
[%emt 0:00:07]} Qf2 {[%emt 0:01:05]} 49. Qd6+ {[%emt 0:02:09]} Kg7 {[%emt 0:00:
00]} 50. Qd7+ {[%emt 0:00:16]} Kf8 {[%emt 0:00:27]} 51. Qc8+ {[%emt 0:00:07]}
Kg7 {[%emt 0:00:08]} 52. Qxg4+ {[%emt 0:00:12]} Kh6 {[%emt 0:11:12]} 53. c7 {
[%emt 0:02:02]} Qc2 {[%emt 0:01:27]} 54. Rd8 {[%emt 0:01:24]} Qc1+ {[%emt 0:00:
00]} 55. Qd1 {[%emt 0:00:14]} Ng3+ {[%emt 0:00:38]} 56. Kh2 {[%emt 0:00:11]}
Kg5+ {[%emt 0:00:31]} 57. Rxh8 {[%emt 0:01:39]} Qxd1 {[%emt 0:01:44]} 58. c8=Q
{[%emt 0:00:09]} 1-0